Cogmind - Beta 10.2 @@@ ROGUE MODE // 2022.03.15 @ 02:18:37 Player: Yanche Result: Destroyed by as-20664 with Assembled Blade Performance ------------- Evolutions (0) 0 Regions Visited (2) 400 Robots Destroyed (3) 15 Value Destroyed (22) 22 Prototype IDs (0) 0 Alien Tech Used (0) 0 Bonus (0) 0 TOTAL SCORE: 437 Bonus ------- None Cogmind --------- Core Integrity 0/250 Matter 193/300 Energy 100/100 System Corruption 0% Temperature Cool (0) Movement Rolling (110) Ox3 Location -10/Mines Parts ------- > --- POWER (1) -------- (None) > --- PROPULSION (2) --- Wheel > --- UTILITY (2) ------ High-capacity Storage Unit > --- WEAPON (2) ------- Mining Claw > --- INVENTORY (12) --- Light Ion Engine Medium Storage Unit Structural Scanner Peak State ------------ > --- POWER ------------ Light Ion Engine > --- PROPULSION ------- Compact Wheel Compact Wheel > --- UTILITY ---------- High-capacity Storage Unit Improved Targeting Computer > --- WEAPON ----------- Assault Rifle Mini Grenade Launcher > --- INVENTORY -------- Light Ion Engine Medium Storage Unit Structural Scanner Small Laser Assault Rifle Grenade Launcher Mining Claw [Rating: 9] Favorites ----------- Power Light Ion Engine Engine Light Ion Engine Propulsion Compact Wheel Wheel Compact Wheel Utility Improved Targeting Computer Storage High-capacity Storage Unit Processor Improved Targeting Computer Weapon Assault Rifle Energy Gun Small Laser Ballistic Gun Assault Rifle Launcher Mini Grenade Launcher Slashing Weapon Mining Claw Build | -11 -10 -10 ------- Run | Scr Mat Min Slots Evolved . | . . . Power . | . . . Propulsion . | . . . Utility . | . . . Weapon . | . . . Parts Attached 17 | 6 2 9 Power 1 | 1 . . Engine 1 | 1 . . Core . | . . . Reactor . | . . . Propulsion 4 | 2 . 2 Treads . | . . . Leg . | . . . Wheel 4 | 2 . 2 Hover . | . . . Flight . | . . . Utility 4 | 1 2 1 Device . | . . . Storage 3 | 1 1 1 Processor 1 | . 1 . Hackware . | . . . Protection . | . . . Artifact . | . . . Weapon 8 | 2 . 6 Energy Gun 1 | . . 1 Energy Cannon . | . . . Ballistic Gun 3 | 2 . 1 Ballistic Cannon . | . . . Launcher 3 | . . 3 Special Weapon . | . . . Impact Weapon . | . . . Slashing Weapon 1 | . . 1 Piercing Weapon . | . . . Special Melee Weapon . | . . . Unidentified Prototypes . | . . . Parts Lost 10 | . . 10 Power 1 | . . 1 Propulsion 3 | . . 3 Utility 1 | . . 1 Weapon 5 | . . 5 Highest Loss Streak 6 | . . 6 Average Slot Usage (%) 90 | . 98 87 Engine 11 | . 14 10 Wheel 23 | . 28 21 Storage 14 | . 14 14 Processor 13 | . 12 13 Energy Gun 1 | . . 1 Ballistic Gun 24 | . 28 23 Naked Turns . | . . . Heaviest Build 39 | 11 15 39 Greatest Support 32 | 32 32 32 Greatest Overweight (x) 11 | . . 11 Average Overweight (x) . | . . 1 Largest Inventory Capacity 12 | 6 8 12 Average Capacity 9 | 5 6 11 Most Carried 8 | 2 6 8 Average Carried 5 | 1 4 6 Final Capacity 12 | 6 8 12 Final Carried 6 | 2 6 3 Class Distribution -------------------- 100% | Mutant Dominant Class ---------------- Mutant | -10/Materials Mutant | -10/Mines Resources | -11 -10 -10 ----------- Run | Scr Mat Min Matter Collected 407 | 254 20 133 Remotely . | . . . Salvage Created 62 | . 20 42 Parts 7 | . 1 6 Haulers Intercepted . | . . . Recyclers Shooed . | . . . Parts Field Recycled . | . . . Retrieved Matter . | . . . Parts Self-Destructed . | . . . Prevented . | . . . Kills | -11 -10 -10 ------- Run | Scr Mat Min Combat Hostiles Destroyed 8 | . 1 7 Guns 4 | . 1 3 AOE 4 | . . 4 Classes Destroyed 4 | . 1 3 Builder 1 | . . 1 Tunneler 1 | . . 1 Swarmer 1 | . 1 . Assembled 7 | . . 7 Best Kill Streak 6 | . 1 6 Combat Bots Only 3 | . 1 3 Max Kills in Single Turn 2 | . 1 2 Gunslinging . | . . . Exploded 1 | . . 1 Melee . | . . . Uniques/NPCs Destroyed . | . . . Combat | -11 -10 -10 -------- Run | Scr Mat Min Damage Taken 907 | . 38 869 Core 285 | . . 285 Absorbed by Shields . | . . . Core Remaining (%) 100 | 100 . . Volleys Fired 29 | . 5 24 Largest 2 | . 2 2 Hottest 60 | . 40 60 Shots Fired 51 | . 10 41 Gun 43 | . 10 33 Cannon . | . . . Launcher 8 | . . 8 Special . | . . . Kinetic 38 | . 10 28 Thermal 5 | . . 5 Explosive 8 | . . 8 Electromagnetic . | . . . Robot Hit Streak 5 | . 3 5 Robot Miss Streak 5 | . 1 5 Penetration Max . | . . . Secondary Targets . | . . . Shots Hit Robots 27 | . 6 21 Core Hits 15 | . 2 13 Critical Hits . | . . . Critical Kills . | . . . Critical Parts Destroyed . | . . . Melee Attacks 2 | . . 2 Impact . | . . . Slashing 2 | . . 2 Piercing . | . . . Sneak Attacks . | . . . Combat Hostiles . | . . . Follow-up Attacks . | . . . Damage Inflicted 672 | . 60 612 Guns 253 | . 60 193 Cannons . | . . . Explosions 391 | . . 391 Melee 28 | . . 28 Ramming . | . . . Kinetic 220 | . 60 160 Thermal 33 | . . 33 Explosive 391 | . . 391 Electromagnetic . | . . . Impact . | . . . Slashing 28 | . . 28 Piercing . | . . . Highest Corruption . | . . . Average Corruption . | . . . Corruption Purged . | . . . Overload Shots . | . . . Overflow Damage 33 | . . 33 Projectiles . | . . . Explosions 17 | . . 17 Melee 16 | . . 16 Knockbacks . | . . . Impact . | . . . Kinetic . | . . . Secondary . | . . . Self-Inflicted Damage 151 | . . 151 Shots 5 | . . 5 Rammed . | . . . Targets Rammed . | . . . Kicked . | . . . Crushed . | . . . Highest Temperature . | . . . Average Temperature . | . . . Received Heat Transfer 20 | . . 20 Siege Activations . | . . . Robots Corrupted . | . . . Combat Hostiles . | . . . Parts Fried . | . . . Impact Corruptions . | . . . Robots Melted . | . . . Combat Hostiles . | . . . Parts Melted . | . . . Heat Transferred 75 | . . 75 Parts Sabotaged . | . . . Parts Stolen . | . . . Parts Stripped . | . . . Power Chain Reactions . | . . . Missiles Intercepted . | . . . Alert | -11 -10 -10 ------- Run | Scr Mat Min Peak Influence 80 | . 80 36 Initial 31 | . . 31 Average 23 | . 28 23 Maximum Alert Level . | . . . Low Security (%) 100 | 100 100 100 Level 1 . | . . . Level 2 . | . . . Level 3 . | . . . Level 4 . | . . . Level 5 . | . . . High Security . | . . . Max Security . | . . . Squads Dispatched 1 | . 1 . Investigation . | . . . Extermination . | . . . Reinforcement 1 | . 1 . Assault . | . . . Garrison . | . . . Intercept . | . . . Construction Impeded . | . . . Haulers Reinforced . | . . . Stealth | -11 -10 -10 --------- Run | Scr Mat Min Distress Signals . | . . . Communications Jammed . | . . . Distress Signals . | . . . Times Spotted 13 | . 4 9 Peak Tracking Total 4 | . 4 4 Tactical Retreats 1 | . 1 . Traps | -11 -10 -10 ------- Run | Scr Mat Min Traps Triggered . | . . . Indirectly . | . . . Trap Hack Attempts . | . . . Triggered . | . . . Disarmed . | . . . Reprogrammed . | . . . Reused . | . . . Traps Extracted . | . . . Installed . | . . . Triggered . | . . . Machines | -11 -10 -10 ---------- Run | Scr Mat Min Machines Disabled . | . . . Max in Single Turn . | . . . Machines Sabotaged . | . . . Garrisons Compromised . | . . . Overloaded Fab Kills . | . . . Fab Network Shutdowns . | . . . Hacking | -11 -10 -10 --------- Run | Scr Mat Min Machines Accessed . | . . . Terminals . | . . . Fabricators . | . . . Repair Stations . | . . . Recycling Units . | . . . Scanalyzers . | . . . Garrison Access . | . . . Total Hacks . | . . . Successful . | . . . Failed . | . . . Catastrophic . | . . . Database Lockouts . | . . . Manual . | . . . Terminals . | . . . Fabricators . | . . . Repair Stations . | . . . Recycling Units . | . . . Scanalyzers . | . . . Garrison Access . | . . . Terminal Hacks . | . . . Fabricator Hacks . | . . . Repair Station Hacks . | . . . Recycling Unit Hacks . | . . . Scanalyzer . | . . . Garrison Access Hacks . | . . . Unauthorized Hacks . | . . . Terminals . | . . . Fabricators . | . . . Repair Stations . | . . . Recycling Units . | . . . Scanalyzers . | . . . Garrison Access . | . . . Data Cores Recovered . | . . . Used . | . . . Hacking Detections . | . . . Full Trace Events . | . . . Feedback Events . | . . . Feedback Blocked . | . . . Robot Schematics Acquired . | . . . Robots Built . | . . . Matter . | . . . Time . | . . . Total Robot Build Rating . | . . . Part Schematics Acquired . | . . . Parts Built . | . . . Matter . | . . . Time . | . . . Total Part Build Rating . | . . . Parts Repaired . | . . . Time . | . . . Parts Recycled . | . . . Recycled Matter . | . . . Retrieved Matter . | . . . Retrieved Components . | . . . Parts Scanalyzed . | . . . Part Schematics Acquired . | . . . Parts Damaged . | . . . Bothacking | -11 -10 -10 ------------ Run | Scr Mat Min Used RIF Installer . | . . . Robots Hacked . | . . . Non-combat . | . . . Combat . | . . . Robot Hacks Applied . | . . . Relay Couplers Released . | . . . Robots Rewired . | . . . Allies Hacked . | . . . Hacks Repelled . | . . . Allies | -11 -10 -10 -------- Run | Scr Mat Min Total Allies . | . . . Largest Group . | . . . Highest-Rated Group . | . . . Highest-Rated Ally . | . . . Total Orders . | . . . Ally Attacks . | . . . Total Damage . | . . . Kills . | . . . Allies Corrupted . | . . . Allies Melted . | . . . Intel | -11 -10 -10 ------- Run | Scr Mat Min Robot Analysis Total . | . . . Derelict Logs Recovered 1 | . . 1 Drone Launches . | . . . Drone Recoveries . | . . . Exploration | -11 -10 -10 ------------- Run | Scr Mat Min Turns Passed 597 | 38 170 389 Spaces Moved 427 | 28 148 251 Core 9 | 1 . 8 Treads . | . . . Legs . | . . . Wheels 418 | 27 148 243 Hover . | . . . Flight . | . . . Fastest Speed 50 | 50 100 90 Average Speed 112 | 98 100 122 Slowest Speed 600 | 100 100 600 Overloaded Moves . | . . . Propulsion Burnouts . | . . . Robots Hopped . | . . . Cave-ins Triggered . | . . . Exploration Rate (%) 33 | 3 28 70 Regions Visited 2 Branch Regions 1 Pre-discovered Areas 1 | . . 1 Known Exits Taken . | . . . Unknown Exits Taken 2 | 1 1 . Scrap Searched 1 | . . 1 Spaces Dug . | . . . Terrain Destroyed 65 | . . 65 Melee . | . . . Projectile . | . . . AOE 65 | . . 65 Terrain Rammed . | . . . Walls Destroyed . | . . . Machines Disabled . | . . . Actions | -11 -10 -10 --------- Run | Scr Mat Min Total 481 | 35 159 287 Wait . | . . . Move 425 | 27 147 251 Hop . | . . . Pick Up 6 | 2 4 . Fast Attach 9 | 6 1 2 Attach 5 | . . 5 Detach 1 | . . 1 Swap 3 | . 1 2 Drop 1 | . 1 . Fire 29 | . 5 24 Melee 2 | . . 2 Ram . | . . . Kick . | . . . Crush . | . . . Escape Stasis . | . . . Rewire . | . . . Trap . | . . . Miscellaneous . | . . . Route ------- -11/Scrapyard -10/Materials -10/Mines History --------- Turn | Location | Event 22 | -11/Scrapyard | Discovered new exit (range 16) 39 | -11/Scrapyard | Entered Materials 182 | -10/Materials | Discovered new exit (range 14) 209 | -10/Materials | Entered Mines 241 | -10/Mines | Learned location of Zion (-7) 258 | -10/Mines | Met a Derelict bent on vengeance 270 | -10/Mines | Assembled infested the area 311 | -10/Mines | Build established: Mutant 520 | -10/Mines | Core integrity fell below 50% 533 | -10/Mines | Lost 4 parts (1p2n1w) 592 | -10/Mines | Core integrity fell below 20% 598 | -10/Mines | Destroyed by as-20664 with Assembled Blade Last Messages --------------- as-08111 destroyed. The unstable cave ceiling collapses. Acquired Wheel. The unstable cave ceiling collapses. Mni. Grenade Launcher destroyed. K-01 Serf collects debris. Grenade Launcher destroyed. Destroyed Grenade Launcher. Wheel destroyed. Destroyed Wheel. U-05 Engineer lays Concrete. K-01 Serf collects debris. The unstable cave ceiling collapses. Destroyed Asb. Hover Unit. K-01 Serf collects debris. The unstable cave ceiling collapses. K-01 Serf collects debris. The unstable cave ceiling collapses. K-01 Serf crushed by falling debris. K-01 Serf destroyed. Map ----- +----------------------------------------------------+ | % #########??????? | | #??????????????? | | ################### ## #??????????????? | | #?????## ##??????## = ### ##??????????????? | | ###### #???????## #?## ##???????????????? | | ## #????????## ?#####????????????????? | | #??????????## #????????????????????? | | """ ###???????????# ###?????????????????? | | """ ##????????????? #?######?????????? | | """ #?????????????? ## ##????????? | | # #?????????????? #######??? | | ## #????????????? ##### #### | | ?## #????????????? #?????# | | ??## #?????????????????????# ## | | ???# ##?????????????????????## ### | | ???## ##???????????????????????##### #?## ### | | ????## #????????????????????????????# #??## ##?# | | ????? #?????#???????????####???????# ########### | | ?????# #????## ????#???## ##??????# | | ?????? #????# #??# ??# < ##?????# | | ?????? ??? ?# ### #?????############## | | ??????##???# a # #??????????????????? | | ????????????# $ %! #???????????????????? | | ????????????# ##???????????????????? | | ????????????# # a #???????????????????# | | ??????????????????# @| #?##????????????????# | | ??????????????????# = r ## ##???????????????# | | ??????????????????# ##??????????????# | | ??????????????????### ## #??????????????? | | ????????????????????# ## ## ! #??????????????? | | ????????????????????# % %%##?????????????? | | ????????????????????### ! %k !%|###???????????? | | ??????????????????????# t # #! =##?????#####? | | ??????????????????????# #*##=## !%####?## #? | | ??????????????????????###### #!### |=! ### ## | | ?????????????????????????######*#?## # | | ??????????????????????????????# #??#### | | ??????????????????????????????# #?????### | | ??????????????????????????????#=#???????## | | ??????????????????????????????# #????????#### | | ???????????????????????????????%????????????## | | ???????????????????????????????!?????????????## | | ???????????????????????????????"??????????????## | | ???????????????????????????????"???????????????## | | ????????????????????????????????????????????????## | | ????????????????????????????????????????????????## | | ????????????????????????????????????????????????# | | ????????????????????????????????????????????????# | | ????????????????????????????????????????????????# | | ????????????????????????????????????????????????## | +----------------------------------------------------+ Best States ------------- Heat Dissipation 25 Energy Generation 10 Energy Capacity 125 Matter Stores 300 Matter Capacity 300 Sight Range 16 Terrain Scan Density 10 Evasion (%) 40 Targeting Accuracy 6 Item Schematics ----------------- None Robot Schematics ------------------ None Fabricated ------------ Nothing Alien Tech Used ----------------- None Achievements -------------- None Challenges ------------ None Game ------ Seed MatterAntimissileBoosters Manual? 0 Play Time 00:06:40 Cumulative 62.6 hours Start 2022.03.15 @ 02:12:32 End 2022.03.15 @ 02:18:37 Sessions 1 Manual Loads 0 Difficulty Rogue Special Mode None Game No. 56 Rogue 46 Adventurer 0 Explorer 10 Win Type - Total 0 Types 0/0/0/0/0/0/0/0/0 Lore% 46 Gallery% 43 Achievement% 30 Wizard Run 0 Options --------- ASCII 0 Keyboard 0 Movement Numpad Keybinds 0 Fullscreen 1 Font 18/SmallcapsGlow Map View 76x50 Tactical HUD 0 Map Filters NONE Filters NONE Steam 1 RUN: 9752de27-f7ad-4f82-a963-b62259eed986